[Event "*** Titled Tuesday Blitz"]
[Site "Chess.com"]
[Date "2020.05.19"]
[Round "1"]
[White "peixe64"]
[Black "SCIM"]
[Result "1/2-1/2"]
[WhiteElo "2256"]
[BlackElo "2546"]
[TimeControl "180+1"]
[EndTime "12:07:45 PDT"]
[Termination "Game drawn by repetition"]

1. d4 {[%clk 0:03:00.3]} 1... Nf6 {[%clk 0:02:58.4]} 2. c4 {[%clk 0:03:00.4]}
2... g6 {[%clk 0:02:59]} 3. Nc3 {[%clk 0:03:00.6]} 3... d5 {[%clk 0:02:59.4]} 4.
cxd5 {[%clk 0:02:59.8]} 4... Nxd5 {[%clk 0:03:00.3]} 5. e4 {[%clk 0:03:00.7]}
5... Nxc3 {[%clk 0:02:59.7]} 6. bxc3 {[%clk 0:03:01.6]} 6... Bg7 {[%clk
0:03:00.3]} 7. Nf3 {[%clk 0:03:01.6]} 7... c5 {[%clk 0:03:00.2]} 8. Rb1 {[%clk
0:02:57.6]} 8... Nc6 {[%clk 0:02:47.2]} 9. d5 {[%clk 0:02:51.7]} 9... Ne5 {[%clk
0:02:47.5]} 10. Nxe5 {[%clk 0:02:38.3]} 10... Bxe5 {[%clk 0:02:48.4]} 11. c4
{[%clk 0:02:34.7]} 11... Qa5+ {[%clk 0:02:36]} 12. Bd2 {[%clk 0:02:31.8]} 12...
Qxa2 {[%clk 0:02:36.4]} 13. Be2 {[%clk 0:02:23.4]} 13... O-O {[%clk 0:02:32.6]}
14. h4 {[%clk 0:02:20.3]} 14... h5 {[%clk 0:02:29.2]} 15. g4 {[%clk 0:02:11.7]}
15... Bxg4 {[%clk 0:02:27.6]} 16. Bxg4 {[%clk 0:02:11.5]} 16... hxg4 {[%clk
0:02:28.5]} 17. h5 {[%clk 0:02:12.2]} 17... Qxc4 {[%clk 0:02:28.1]} 18. Qxg4
{[%clk 0:02:01.8]} 18... Bg7 {[%clk 0:01:51.5]} 19. Rc1 {[%clk 0:01:30.2]} 19...
f5 {[%clk 0:01:33.7]} 20. Rxc4 {[%clk 0:01:20.8]} 20... fxg4 {[%clk 0:01:33.3]}
21. hxg6 {[%clk 0:01:13.5]} 21... Bd4 {[%clk 0:01:28.9]} 22. Rh2 {[%clk
0:00:49.7]} 22... b5 {[%clk 0:01:25.3]} 23. Rc2 {[%clk 0:00:46.4]} 23... a5
{[%clk 0:01:23.4]} 24. Bg5 {[%clk 0:00:43]} 24... Ra7 {[%clk 0:01:17]} 25. Rh7
{[%clk 0:00:40]} 25... b4 {[%clk 0:01:03.6]} 26. Be3 {[%clk 0:00:21.3]} 26... b3
{[%clk 0:00:54.5]} 27. Bxd4 {[%clk 0:00:20.3]} 27... cxd4 {[%clk 0:00:55.4]} 28.
Rb2 {[%clk 0:00:18.2]} 28... a4 {[%clk 0:00:53.1]} 29. Rb1 {[%clk 0:00:13.5]}
29... d3 {[%clk 0:00:31.1]} 30. Kd2 {[%clk 0:00:10.6]} 30... Rxf2+ {[%clk
0:00:31.3]} 31. Ke3 {[%clk 0:00:10.2]} 31... Rf3+ {[%clk 0:00:31.5]} 32. Kd4
{[%clk 0:00:10.8]} 32... Rh3 {[%clk 0:00:27.8]} 33. Rf7 {[%clk 0:00:09.6]} 33...
Rf3 {[%clk 0:00:26.6]} 34. Rh7 {[%clk 0:00:09.5]} 34... d2 {[%clk 0:00:18.9]}
35. e5 {[%clk 0:00:07.5]} 35... Rf4+ {[%clk 0:00:15]} 36. Ke3 {[%clk 0:00:07.6]}
36... Rc4 {[%clk 0:00:15]} 37. Rbh1 {[%clk 0:00:06]} 37... Rc1 {[%clk
0:00:12.3]} 38. Rh8+ {[%clk 0:00:05.8]} 38... Kg7 {[%clk 0:00:12.5]} 39. R1h7+
{[%clk 0:00:06.4]} 39... Kxg6 {[%clk 0:00:12.6]} 40. Rh6+ {[%clk 0:00:06.9]}
40... Kg5 {[%clk 0:00:09.1]} 41. Rh5+ {[%clk 0:00:07.5]} 41... Kg6 {[%clk
0:00:09.4]} 42. R5h6+ {[%clk 0:00:08.1]} 42... Kf5 {[%clk 0:00:05.1]} 43. Rh5+
{[%clk 0:00:08.2]} 43... Kg6 {[%clk 0:00:04.9]} 44. R5h6+ {[%clk 0:00:08.8]}
1/2-1/2

[Event "*** Titled Tuesday Blitz"]
[Site "Chess.com"]
[Date "2020.05.19"]
[Round "1"]
[White "noblerone"]
[Black "pedro_nascimento85"]
[Result "1-0"]
[WhiteElo "2466"]
[BlackElo "1730"]
[TimeControl "180+1"]
[EndTime "12:07:46 PDT"]
[Termination "noblerone won on time"]

1. d4 {[%clk 0:02:59.2]} 1... d5 {[%clk 0:02:59.4]} 2. Nf3 {[%clk 0:02:55.1]}
2... Nf6 {[%clk 0:02:57.5]} 3. Bg5 {[%clk 0:02:54.4]} 3... e6 {[%clk 0:02:55.7]}
4. Nbd2 {[%clk 0:02:54]} 4... Be7 {[%clk 0:02:54.3]} 5. e3 {[%clk 0:02:54.2]}
5... O-O {[%clk 0:02:53.3]} 6. Bd3 {[%clk 0:02:54.1]} 6... c5 {[%clk 0:02:49.7]}
7. c3 {[%clk 0:02:54.1]} 7... Nc6 {[%clk 0:02:48.3]} 8. O-O {[%clk 0:02:50.8]}
8... Qb6 {[%clk 0:02:47]} 9. Rb1 {[%clk 0:02:50]} 9... cxd4 {[%clk 0:02:43.7]}
10. exd4 {[%clk 0:02:50]} 10... h6 {[%clk 0:02:43.3]} 11. Bh4 {[%clk 0:02:49.8]}
11... Bd7 {[%clk 0:02:40.5]} 12. Ne5 {[%clk 0:02:41.1]} 12... Qc7 {[%clk
0:02:28.2]} 13. f4 {[%clk 0:02:36.4]} 13... Ne8 {[%clk 0:02:16.4]} 14. Bg3
{[%clk 0:01:52.8]} 14... Nxe5 {[%clk 0:02:13.7]} 15. fxe5 {[%clk 0:01:53.7]}
15... Qb6 {[%clk 0:02:04.7]} 16. Qh5 {[%clk 0:01:37.7]} 16... Bb5 {[%clk
0:01:59.5]} 17. Bxb5 {[%clk 0:01:13]} 17... Qxb5 {[%clk 0:01:58.1]} 18. Rf2
{[%clk 0:01:13.2]} 18... Bg5 {[%clk 0:01:50.2]} 19. Bf4 {[%clk 0:00:50]} 19...
Bxf4 {[%clk 0:01:44.1]} 20. Rxf4 {[%clk 0:00:50.9]} 20... f6 {[%clk 0:01:34.3]}
21. Rbf1 {[%clk 0:00:30.9]} 21... Qxb2 {[%clk 0:01:19.3]} 22. Qh3 {[%clk
0:00:20.6]} 22... Qxd2 {[%clk 0:01:08.8]} 23. Rg4 {[%clk 0:00:18.5]} 23... f5
{[%clk 0:01:00.2]} 24. Rg3 {[%clk 0:00:15.2]} 24... Rf7 {[%clk 0:00:52.1]} 25.
Qh5 {[%clk 0:00:11.2]} 25... Rc8 {[%clk 0:00:42.2]} 26. Qg6 {[%clk 0:00:10.4]}
26... Rc6 {[%clk 0:00:26.8]} 27. h3 {[%clk 0:00:10.8]} 27... Nc7 {[%clk
0:00:21.7]} 28. Rff3 {[%clk 0:00:08.8]} 28... a5 {[%clk 0:00:13.4]} 29. Kh2
{[%clk 0:00:08.9]} 29... b5 {[%clk 0:00:13.6]} 30. a3 {[%clk 0:00:08.3]} 30...
b4 {[%clk 0:00:13]} 31. axb4 {[%clk 0:00:09.2]} 31... axb4 {[%clk 0:00:13.5]}
32. cxb4 {[%clk 0:00:10.1]} 32... Rb6 {[%clk 0:00:10.5]} 33. Rd3 {[%clk
0:00:06.1]} 33... Qb2 {[%clk 0:00:08.9]} 34. Qxh6 {[%clk 0:00:04.7]} 34... Kf8
{[%clk 0:00:07.7]} 35. Qg5 {[%clk 0:00:04.7]} 35... Ke8 {[%clk 0:00:06.6]} 36.
Qh5 {[%clk 0:00:04.2]} 36... Qxb4 {[%clk 0:00:05.3]} 37. Qh8+ {[%clk 0:00:04.2]}
37... Qf8 {[%clk 0:00:05.1]} 38. Qh4 {[%clk 0:00:04.4]} 38... Qe7 {[%clk
0:00:04.8]} 39. Qf4 {[%clk 0:00:03.8]} 39... Kd7 {[%clk 0:00:02.6]} 40. Ra3
{[%clk 0:00:03]} 1-0

[Event "*** Titled Tuesday Blitz"]
[Site "Chess.com"]
[Date "2020.05.19"]
[Round "1"]
[White "Keks2017"]
[Black "talaicito"]
[Result "1-0"]
[WhiteElo "2507"]
[BlackElo "2151"]
[TimeControl "180+1"]
[EndTime "12:07:48 PDT"]
[Termination "Keks2017 won on time"]

1. e4 {[%clk 0:02:58.4]} 1... e6 {[%clk 0:03:00.4]} 2. d4 {[%clk 0:02:57]} 2...
d5 {[%clk 0:03:01.3]} 3. Nc3 {[%clk 0:02:56.8]} 3... Bb4 {[%clk 0:03:00.5]} 4.
e5 {[%clk 0:02:56.1]} 4... Ne7 {[%clk 0:02:59.9]} 5. a3 {[%clk 0:02:55.5]} 5...
Ba5 {[%clk 0:03:00]} 6. b4 {[%clk 0:02:52.3]} 6... Bb6 {[%clk 0:03:00.1]} 7. Be3
{[%clk 0:02:51.8]} 7... a5 {[%clk 0:02:55.9]} 8. Nf3 {[%clk 0:02:50.4]} 8...
axb4 {[%clk 0:02:53.6]} 9. axb4 {[%clk 0:02:49.7]} 9... Rxa1 {[%clk 0:02:54]}
10. Qxa1 {[%clk 0:02:49.1]} 10... O-O {[%clk 0:02:51]} 11. Bd3 {[%clk
0:02:48.8]} 11... Na6 {[%clk 0:02:49.6]} 12. Qb2 {[%clk 0:02:47.5]} 12... c6
{[%clk 0:02:37.5]} 13. Ne2 {[%clk 0:02:46.7]} 13... Nf5 {[%clk 0:02:35.1]} 14.
Bd2 {[%clk 0:02:44.8]} 14... Nc7 {[%clk 0:02:18.3]} 15. O-O {[%clk 0:02:43.3]}
15... Nb5 {[%clk 0:02:17.4]} 16. c3 {[%clk 0:02:41.6]} 16... Nh4 {[%clk
0:02:01.4]} 17. Ng5 {[%clk 0:02:33.8]} 17... h6 {[%clk 0:01:55.8]} 18. Nh3
{[%clk 0:02:32.4]} 18... f6 {[%clk 0:01:44.4]} 19. f4 {[%clk 0:02:19.3]} 19...
fxe5 {[%clk 0:01:43.2]} 20. fxe5 {[%clk 0:02:18.8]} 20... Rxf1+ {[%clk
0:01:42.6]} 21. Kxf1 {[%clk 0:02:18.5]} 21... Bd7 {[%clk 0:01:37.6]} 22. Kg1
{[%clk 0:02:13.8]} 22... Be8 {[%clk 0:01:36.3]} 23. Nef4 {[%clk 0:02:11.5]}
23... Qe7 {[%clk 0:01:25]} 24. Be1 {[%clk 0:02:03.8]} 24... Nc7 {[%clk
0:01:21.2]} 25. Qf2 {[%clk 0:01:59.2]} 25... g5 {[%clk 0:01:11]} 26. Ne2 {[%clk
0:01:55.8]} 26... Bg6 {[%clk 0:01:07.9]} 27. Bxg6 {[%clk 0:01:53.1]} 27... Nxg6
{[%clk 0:01:08.8]} 28. Qg3 {[%clk 0:01:44.9]} 28... Qf7 {[%clk 0:00:52.4]} 29.
Nf2 {[%clk 0:01:38.3]} 29... h5 {[%clk 0:00:33.1]} 30. Qxg5 {[%clk 0:01:34.2]}
30... Qf5 {[%clk 0:00:33.3]} 31. Qxf5 {[%clk 0:01:27.4]} 31... exf5 {[%clk
0:00:34.2]} 32. Bd2 {[%clk 0:01:26.1]} 32... Ne6 {[%clk 0:00:33.9]} 33. Nd3
{[%clk 0:01:23]} 33... Kg7 {[%clk 0:00:29.6]} 34. Kf2 {[%clk 0:01:21.2]} 34...
Kh7 {[%clk 0:00:21]} 35. g3 {[%clk 0:01:20.9]} 35... Kg7 {[%clk 0:00:20.7]} 36.
Kf3 {[%clk 0:01:18.4]} 36... Kh7 {[%clk 0:00:20.4]} 37. h4 {[%clk 0:01:16.9]}
37... Kg7 {[%clk 0:00:19.8]} 38. Bg5 {[%clk 0:01:16.5]} 38... Nxg5+ {[%clk
0:00:18.4]} 39. hxg5 {[%clk 0:01:15.6]} 39... Bd8 {[%clk 0:00:18.9]} 40. Ndf4
{[%clk 0:01:11.7]} 40... Kf7 {[%clk 0:00:16.8]} 41. Nxh5 {[%clk 0:01:10.1]}
41... Bxg5 {[%clk 0:00:16.9]} 42. Nef4 {[%clk 0:01:06.4]} 42... Nxf4 {[%clk
0:00:16.1]} 43. Nxf4 {[%clk 0:01:06]} 43... Be7 {[%clk 0:00:14]} 44. g4 {[%clk
0:01:05]} 44... fxg4+ {[%clk 0:00:13.3]} 45. Kxg4 {[%clk 0:01:05]} 45... Kg7
{[%clk 0:00:11.3]} 46. Kf5 {[%clk 0:01:04.7]} 46... Kf7 {[%clk 0:00:11.2]} 47.
e6+ {[%clk 0:01:01.5]} 47... Kg7 {[%clk 0:00:11]} 48. Nd3 {[%clk 0:00:59.9]}
48... Bd6 {[%clk 0:00:10.3]} 49. Nc5 {[%clk 0:00:59]} 49... b6 {[%clk
0:00:09.3]} 50. Nd3 {[%clk 0:00:50]} 50... Kf8 {[%clk 0:00:09.3]} 51. Ne5 {[%clk
0:00:49.1]} 51... c5 {[%clk 0:00:08.7]} 52. bxc5 {[%clk 0:00:48.4]} 52... bxc5
{[%clk 0:00:08.4]} 53. Ng6+ {[%clk 0:00:47.4]} 53... Ke8 {[%clk 0:00:07.9]} 54.
Nf4 {[%clk 0:00:47]} 54... cxd4 {[%clk 0:00:07.7]} 55. cxd4 {[%clk 0:00:45.9]}
55... Ba3 {[%clk 0:00:05.5]} 56. Nxd5 {[%clk 0:00:44.8]} 56... Bb2 {[%clk
0:00:05.6]} 57. Ke5 {[%clk 0:00:44.3]} 57... Ba1 {[%clk 0:00:05.7]} 58. Ne3
{[%clk 0:00:43.2]} 58... Bb2 {[%clk 0:00:05.3]} 59. Nf5 {[%clk 0:00:42.6]} 59...
Bc3 {[%clk 0:00:04.1]} 60. Ke4 {[%clk 0:00:42]} 60... Bb4 {[%clk 0:00:02.3]} 61.
d5 {[%clk 0:00:41.7]} 61... Bc5 {[%clk 0:00:02]} 62. d6 {[%clk 0:00:41.4]} 1-0

[Event "*** Titled Tuesday Blitz"]
[Site "Chess.com"]
[Date "2020.05.19"]
[Round "1"]
[White "mbojan"]
[Black "YellowJacek"]
[Result "1-0"]
[WhiteElo "2602"]
[BlackElo "2303"]
[TimeControl "180+1"]
[EndTime "12:07:49 PDT"]
[Termination "mbojan won by resignation"]

1. e4 {[%clk 0:03:00.9]} 1... c5 {[%clk 0:02:59.4]} 2. Nf3 {[%clk 0:03:00.8]}
2... d6 {[%clk 0:02:59.2]} 3. d4 {[%clk 0:03:01]} 3... cxd4 {[%clk 0:02:59.7]}
4. Nxd4 {[%clk 0:03:01.9]} 4... Nf6 {[%clk 0:02:59.8]} 5. Nc3 {[%clk 0:03:01.6]}
5... g6 {[%clk 0:02:58.2]} 6. Be3 {[%clk 0:03:00.2]} 6... Bg7 {[%clk 0:02:58]}
7. f3 {[%clk 0:03:00.4]} 7... O-O {[%clk 0:02:57.8]} 8. Qd2 {[%clk 0:03:00.7]}
8... Nc6 {[%clk 0:02:57.9]} 9. O-O-O {[%clk 0:03:00.9]} 9... d5 {[%clk
0:02:57.7]} 10. Nxc6 {[%clk 0:03:00.7]} 10... bxc6 {[%clk 0:02:57.3]} 11. Bh6
{[%clk 0:03:01.1]} 11... Bxh6 {[%clk 0:02:54.4]} 12. Qxh6 {[%clk 0:03:02]} 12...
Rb8 {[%clk 0:02:38.4]} 13. e5 {[%clk 0:02:59.8]} 13... Nd7 {[%clk 0:02:36.5]}
14. h4 {[%clk 0:02:59.5]} 14... f6 {[%clk 0:02:24.2]} 15. exf6 {[%clk
0:02:39.1]} 15... Nxf6 {[%clk 0:02:20.1]} 16. Bd3 {[%clk 0:02:31.1]} 16... Bf5
{[%clk 0:02:17.7]} 17. Bxf5 {[%clk 0:02:30.2]} 17... gxf5 {[%clk 0:02:18.6]} 18.
Qg5+ {[%clk 0:02:28.9]} 18... Kh8 {[%clk 0:02:09.9]} 19. Qxf5 {[%clk 0:02:28.9]}
19... Qb6 {[%clk 0:02:04.3]} 20. b3 {[%clk 0:02:28.7]} 20... Qe3+ {[%clk
0:01:59.2]} 21. Kb2 {[%clk 0:02:28.7]} 21... e6 {[%clk 0:01:49.6]} 22. Qd3
{[%clk 0:02:28.3]} 22... Qxd3 {[%clk 0:01:45.7]} 23. Rxd3 {[%clk 0:02:29.2]}
23... Nh5 {[%clk 0:01:38.8]} 24. Ne2 {[%clk 0:02:29]} 24... Kg7 {[%clk
0:01:37.7]} 25. g4 {[%clk 0:02:26.8]} 25... Nf4 {[%clk 0:01:37.1]} 26. Nxf4
{[%clk 0:02:26.8]} 26... Rxf4 {[%clk 0:01:38]} 27. Re1 {[%clk 0:02:27.5]} 27...
Kf6 {[%clk 0:01:34.7]} 28. Rde3 {[%clk 0:02:21.1]} 28... Re8 {[%clk 0:01:34.4]}
29. Kc1 {[%clk 0:01:58.7]} 29... e5 {[%clk 0:01:28.8]} 30. Kd2 {[%clk 0:01:58]}
30... h5 {[%clk 0:01:24.1]} 31. g5+ {[%clk 0:01:39.4]} 31... Kf5 {[%clk
0:01:24]} 32. Rh1 {[%clk 0:01:39.6]} 32... d4 {[%clk 0:01:09.9]} 33. Rd3 {[%clk
0:01:38.3]} 33... Ke6 {[%clk 0:01:08.1]} 34. c3 {[%clk 0:01:30.5]} 34... c5
{[%clk 0:01:07.3]} 35. cxd4 {[%clk 0:00:58.6]} 35... cxd4 {[%clk 0:01:08.2]} 36.
b4 {[%clk 0:00:58.9]} 36... Ref8 {[%clk 0:01:04.5]} 37. Ke2 {[%clk 0:00:55.6]}
37... Kd5 {[%clk 0:00:39.5]} 38. a3 {[%clk 0:00:18.3]} 38... Rc8 {[%clk
0:00:22.9]} 39. Kd2 {[%clk 0:00:17.1]} 39... Rcf8 {[%clk 0:00:18.9]} 40. Rh3
{[%clk 0:00:17.2]} 40... Rc8 {[%clk 0:00:17.8]} 41. Kd1 {[%clk 0:00:14]} 41...
Kc4 {[%clk 0:00:15.4]} 42. Rd2 {[%clk 0:00:14.1]} 42... Kd5 {[%clk 0:00:14.8]}
43. Rc2 {[%clk 0:00:13.1]} 43... Rcf8 {[%clk 0:00:14.6]} 44. Rc5+ {[%clk
0:00:13.2]} 44... Kd6 {[%clk 0:00:14.8]} 45. Ke2 {[%clk 0:00:13.7]} 45... e4
{[%clk 0:00:14.7]} 46. fxe4 {[%clk 0:00:14.6]} 46... Rf2+ {[%clk 0:00:15]} 47.
Kd3 {[%clk 0:00:15]} 47... R8f3+ {[%clk 0:00:14.5]} 48. Rxf3 {[%clk 0:00:14.7]}
48... Rxf3+ {[%clk 0:00:15.4]} 49. Kxd4 {[%clk 0:00:15.4]} 49... Rh3 {[%clk
0:00:16]} 50. e5+ {[%clk 0:00:15.1]} 50... Ke6 {[%clk 0:00:16.5]} 51. Rc6+
{[%clk 0:00:14.1]} 51... Kd7 {[%clk 0:00:16.9]} 52. Rh6 {[%clk 0:00:13.2]} 1-0

[Event "*** Titled Tuesday Blitz"]
[Site "Chess.com"]
[Date "2020.05.19"]
[Round "1"]
[White "kasparicy"]
[Black "Dr-Bassem"]
[Result "0-1"]
[WhiteElo "2412"]
[BlackElo "2789"]
[TimeControl "180+1"]
[EndTime "12:07:51 PDT"]
[Termination "Dr-Bassem won on time"]

1. e4 {[%clk 0:03:00.5]} 1... e5 {[%clk 0:02:59]} 2. Nf3 {[%clk 0:03:00.3]} 2...
Nc6 {[%clk 0:02:59.4]} 3. Bc4 {[%clk 0:03:00.8]} 3... Nf6 {[%clk 0:02:58.1]} 4.
d3 {[%clk 0:03:00.5]} 4... h6 {[%clk 0:02:58.4]} 5. c3 {[%clk 0:03:00.3]} 5...
d6 {[%clk 0:02:58.8]} 6. Nbd2 {[%clk 0:02:59.4]} 6... g6 {[%clk 0:02:58.2]} 7.
Bb3 {[%clk 0:02:55.3]} 7... Bg7 {[%clk 0:02:58.7]} 8. O-O {[%clk 0:02:43.3]}
8... O-O {[%clk 0:02:59.1]} 9. h3 {[%clk 0:02:41.3]} 9... Re8 {[%clk 0:02:43.4]}
10. Re1 {[%clk 0:02:25.5]} 10... d5 {[%clk 0:02:36.9]} 11. exd5 {[%clk
0:02:15.9]} 11... Nxd5 {[%clk 0:02:37.8]} 12. Nf1 {[%clk 0:02:16]} 12... Kh7
{[%clk 0:02:31.2]} 13. Ng3 {[%clk 0:01:59.9]} 13... f5 {[%clk 0:02:30.5]} 14. a3
{[%clk 0:01:50.2]} 14... Be6 {[%clk 0:02:18.2]} 15. Bd2 {[%clk 0:01:25]} 15...
Qd6 {[%clk 0:02:07.4]} 16. Qc2 {[%clk 0:01:10.5]} 16... Rad8 {[%clk 0:02:03.4]}
17. Rad1 {[%clk 0:00:58.3]} 17... a6 {[%clk 0:01:16.8]} 18. Bc1 {[%clk
0:00:58.2]} 18... b5 {[%clk 0:01:16.6]} 19. Ba2 {[%clk 0:00:56.6]} 19... a5
{[%clk 0:01:04.4]} 20. c4 {[%clk 0:00:55.9]} 20... Nf4 {[%clk 0:00:51.4]} 21.
Bxf4 {[%clk 0:00:20.5]} 21... exf4 {[%clk 0:00:52.3]} 22. Ne2 {[%clk 0:00:19.1]}
22... g5 {[%clk 0:00:45.1]} 23. d4 {[%clk 0:00:10.7]} 23... Bxc4 {[%clk
0:00:43.5]} 24. Qxf5+ {[%clk 0:00:08.8]} 24... Qg6 {[%clk 0:00:43.6]} 25. Qxg6+
{[%clk 0:00:07.7]} 25... Kxg6 {[%clk 0:00:44.5]} 26. Bxc4 {[%clk 0:00:07.9]}
26... bxc4 {[%clk 0:00:44.7]} 27. Rc1 {[%clk 0:00:03.6]} 27... Nxd4 {[%clk
0:00:42.6]} 28. Nexd4 {[%clk 0:00:03.5]} 28... Rxe1+ {[%clk 0:00:42.9]} 29. Rxe1
{[%clk 0:00:03.6]} 29... Bxd4 {[%clk 0:00:43.2]} 30. Re6+ {[%clk 0:00:03.7]}
30... Kf5 {[%clk 0:00:32.5]} 31. Rc6 {[%clk 0:00:04.6]} 31... Bb6 {[%clk
0:00:20.1]} 32. Rxc4 {[%clk 0:00:04.4]} 32... Rd1+ {[%clk 0:00:20.3]} 33. Kh2
{[%clk 0:00:04.4]} 33... Bxf2 {[%clk 0:00:20.9]} 34. g4+ {[%clk 0:00:04.1]}
34... fxg3+ {[%clk 0:00:20.5]} 35. Kg2 {[%clk 0:00:04.8]} 35... c5 {[%clk
0:00:19.1]} 36. b4 {[%clk 0:00:04.6]} 36... cxb4 {[%clk 0:00:18.1]} 37. axb4
{[%clk 0:00:05.5]} 37... a4 {[%clk 0:00:18.5]} 38. b5 {[%clk 0:00:05.8]} 38...
a3 {[%clk 0:00:18.8]} 39. Ra4 {[%clk 0:00:06.5]} 39... Rd3 {[%clk 0:00:16.6]}
40. Ra6 {[%clk 0:00:05.2]} 40... h5 {[%clk 0:00:15.8]} 41. b6 {[%clk 0:00:05.6]}
41... Rb3 {[%clk 0:00:07.4]} 42. b7 {[%clk 0:00:05.5]} 42... g4 {[%clk
0:00:07.5]} 43. hxg4+ {[%clk 0:00:04.5]} 43... hxg4 {[%clk 0:00:08]} 44. Nh4+
{[%clk 0:00:04.1]} 44... Kg5 {[%clk 0:00:07.3]} 45. Ng6 {[%clk 0:00:02.5]} 45...
Rxb7 {[%clk 0:00:07.8]} 46. Ne5 {[%clk 0:00:02.7]} 46... Rb3 {[%clk 0:00:07.1]}
0-1

[Event "*** Titled Tuesday Blitz"]
[Site "Chess.com"]
[Date "2020.05.19"]
[Round "1"]
[White "WPWPWP-2015"]
[Black "Harsha_Bharathakoti"]
[Result "0-1"]
[WhiteElo "2402"]
[BlackElo "2758"]
[TimeControl "180+1"]
[EndTime "12:07:51 PDT"]
[Termination "Harsha_Bharathakoti won on time"]

1. e4 {[%clk 0:02:59.2]} 1... c5 {[%clk 0:02:59.7]} 2. Nf3 {[%clk 0:02:58.1]}
2... Nc6 {[%clk 0:02:57.6]} 3. d4 {[%clk 0:02:55.2]} 3... cxd4 {[%clk
0:02:58.5]} 4. Nxd4 {[%clk 0:02:55.7]} 4... e5 {[%clk 0:02:58.8]} 5. Nb5 {[%clk
0:02:54.6]} 5... d6 {[%clk 0:02:58.8]} 6. c4 {[%clk 0:02:53.6]} 6... a6 {[%clk
0:02:49]} 7. N5c3 {[%clk 0:02:52.1]} 7... Be7 {[%clk 0:02:48.4]} 8. Be2 {[%clk
0:02:46.7]} 8... Nf6 {[%clk 0:02:48.3]} 9. O-O {[%clk 0:02:45.5]} 9... O-O
{[%clk 0:02:48.1]} 10. Be3 {[%clk 0:02:45]} 10... Be6 {[%clk 0:02:48.2]} 11. Nd2
{[%clk 0:02:38.7]} 11... Rc8 {[%clk 0:02:48.1]} 12. Rc1 {[%clk 0:02:37.5]} 12...
Nd7 {[%clk 0:02:40.4]} 13. g3 {[%clk 0:02:21.5]} 13... Nd4 {[%clk 0:02:08.9]}
14. f4 {[%clk 0:02:06.2]} 14... f5 {[%clk 0:01:47.1]} 15. Bd3 {[%clk 0:01:53.9]}
15... Nc5 {[%clk 0:01:46.4]} 16. Bb1 {[%clk 0:01:47.5]} 16... b5 {[%clk
0:01:33.4]} 17. cxb5 {[%clk 0:01:44.1]} 17... axb5 {[%clk 0:01:33.3]} 18. Nd5
{[%clk 0:01:21.9]} 18... Bxd5 {[%clk 0:01:27.3]} 19. exd5 {[%clk 0:01:22.8]}
19... Bf6 {[%clk 0:00:47]} 20. Bxd4 {[%clk 0:01:19.4]} 20... exd4 {[%clk
0:00:47.9]} 21. Bxf5 {[%clk 0:01:19]} 21... Ra8 {[%clk 0:00:48.2]} 22. Bb1
{[%clk 0:01:11.9]} 22... d3 {[%clk 0:00:37.9]} 23. Nf3 {[%clk 0:00:58.3]} 23...
Bxb2 {[%clk 0:00:37.1]} 24. Rxc5 {[%clk 0:00:58]} 24... dxc5 {[%clk 0:00:38]}
25. Qxd3 {[%clk 0:00:57.6]} 25... g6 {[%clk 0:00:35.6]} 26. Ng5 {[%clk
0:00:53.1]} 26... c4 {[%clk 0:00:31.4]} 27. Qd2 {[%clk 0:00:40.2]} 27... Qb6+
{[%clk 0:00:30.4]} 28. Kh1 {[%clk 0:00:37.4]} 28... Bf6 {[%clk 0:00:18.3]} 29.
Ne6 {[%clk 0:00:26.7]} 29... Rf7 {[%clk 0:00:18.2]} 30. f5 {[%clk 0:00:25.7]}
30... c3 {[%clk 0:00:16.7]} 31. Qh6 {[%clk 0:00:20.8]} 31... Qd6 {[%clk
0:00:08.1]} 32. Be4 {[%clk 0:00:18.8]} 32... gxf5 {[%clk 0:00:06.1]} 33. Rxf5
{[%clk 0:00:14.1]} 33... Qe7 {[%clk 0:00:03.2]} 34. Rf4 {[%clk 0:00:09.5]} 34...
Rxa2 {[%clk 0:00:01.7]} 35. Rg4+ {[%clk 0:00:03.6]} 35... Kh8 {[%clk 0:00:01.9]}
36. Qe3 {[%clk 0:00:02.4]} 36... Ra1+ {[%clk 0:00:02]} 37. Kg2 {[%clk
0:00:02.1]} 37... Ra8 {[%clk 0:00:02.9]} 38. Kh3 {[%clk 0:00:02.5]} 38... Rg8
{[%clk 0:00:02.6]} 39. Qd3 {[%clk 0:00:02.6]} 39... Rxg4 {[%clk 0:00:02.5]} 40.
Kxg4 {[%clk 0:00:03.3]} 40... Be5 {[%clk 0:00:03.3]} 41. Kh3 {[%clk 0:00:01.5]}
41... b4 {[%clk 0:00:02.7]} 42. d6 {[%clk 0:00:01.3]} 42... Qxe6+ {[%clk
0:00:02.7]} 43. Kg2 {[%clk 0:00:01.6]} 43... Qxd6 {[%clk 0:00:02.8]} 0-1